Cogmind - Beta 16 @@@ ROGUE MODE // 2025.11.16 @ 12:34:56 Player: ClassActJerk Result: Destroyed by as-11472 with Assembled Blade Performance ------------- Evolutions (1) 500 Regions Visited (3) 600 Robots Destroyed (19) 95 Value Destroyed (333) 333 Prototype IDs (1) 20 Alien Tech Used (0) 0 Bonus (0) 0 TOTAL SCORE: 1548 Bonus ------- None Cogmind --------- Core Integrity 0/400 Matter 295/300 Energy 100/100 System Corruption 9% Temperature Warning (391) Movement Core (400) Ox7 Location -9/Mines Parts ------- > --- POWER (1) -------- (None) > --- PROPULSION (4) --- (None) > --- UTILITY (2) ------ Large Storage Unit > --- WEAPON (2) ------- Improved Medium Laser > --- INVENTORY (15) --- Weight Redist. System Improved Medium Laser Improved Medium Laser Welding Torch Peak State ------------ > --- POWER ------------ Ion Engine > --- PROPULSION ------- Light Treads Light Treads > --- UTILITY ---------- Large Storage Unit > --- WEAPON ----------- Improved Medium Laser Improved Medium Laser > --- INVENTORY -------- Light Ion Engine Weight Redist. System Improved Medium Laser Improved Medium Laser Welding Torch [Rating: 11] Favorites ----------- Power Ion Engine Engine Ion Engine Propulsion Light Treads Treads Light Treads Flight Unit Flight Unit Utility Large Storage Unit Storage Large Storage Unit Weapon Improved Medium Laser Energy Gun Improved Medium Laser Ballistic Gun Light Assault Rifle Launcher Grenade Launcher Special Weapon Welding Torch Build | -11 -10 -9 -9 ------- Run | Yrd Mat Mat Min Slots Evolved 2 | . . 2 . Power . | . . . . Propulsion 2 | . . 2 . Utility . | . . . . Weapon . | . . . . Parts Attached 23 | 6 3 12 2 Power 5 | 1 1 2 1 Engine 5 | 1 1 2 1 Core . | . . . . Reactor . | . . . . Propulsion 6 | 2 . 4 . Treads 4 | 2 . 2 . Leg . | . . . . Wheel . | . . . . Hover . | . . . . Flight 2 | . . 2 . Utility 3 | 1 1 1 . Device . | . . . . Storage 3 | 1 1 1 . Processor . | . . . . Hackware . | . . . . Protection . | . . . . Artifact . | . . . . Weapon 9 | 2 1 5 1 Energy Gun 6 | 1 1 3 1 Energy Cannon . | . . . . Ballistic Gun 1 | 1 . . . Ballistic Cannon . | . . . . Launcher 1 | . . 1 . Special Weapon 1 | . . 1 . Impact Weapon . | . . . . Slashing Weapon . | . . . . Piercing Weapon . | . . . . Special Melee Weapon . | . . . . Unidentified Prototypes 1 | . . 1 . Parts Lost 9 | . . 5 4 Power 2 | . . 1 1 Propulsion 4 | . . 2 2 Utility . | . . . . Weapon 3 | . . 2 1 Highest Loss Streak 5 | . . 5 4 To Critical Strikes . | . . . . Average Backups 2 | 1 2 2 4 Power . | . 1 . . Propulsion . | . . . . Utility . | . . . 1 Weapon . | 1 . . 2 Tool/Special . | . . . . Unused Backups 2 | . . . 2 Power . | . . . . Propulsion . | . . . . Utility 1 | . . . 1 Weapon 1 | . . . 1 Tool/Special . | . . . . Average Slot Usage (%) 65 | . 83 50 66 Engine 11 | . 14 9 11 Treads 19 | . 28 11 22 Flight 2 | . . 4 . Storage 12 | . 14 11 11 Energy Gun 13 | . 14 12 22 Ballistic Gun 5 | . 12 . . Peak Build Rating 11 | 6 6 11 11 Average Rating 6 | 4 5 6 10 On Entrance 5 | . 6 5 11 Avg Prop Armor Cover (%) . | . . . . Naked Turns . | . . . . Heaviest Build 31 | 13 18 31 31 Greatest Support 40 | 40 40 40 40 Greatest Overweight (x) 8 | . . 8 . Average Overweight (x) . | . . 1 . Largest Inventory Capacity 15 | 8 10 15 15 Average Capacity 11 | 7 8 14 15 Most Carried 5 | 5 5 5 5 Average Carried 2 | 1 2 2 4 Final Capacity 15 | 8 10 15 15 Final Carried 5 | 2 4 5 4 Class Distribution -------------------- 97% | Mutant Dominant Class ---------------- Mutant | -10/Materials Mutant | -9/Materials Mutant | -9/Mines Resources | -11 -10 -9 -9 ----------- Run | Yrd Mat Mat Min Matter Collected 471 | 219 87 132 33 Remotely . | . . . . Salvage Created 533 | . 241 228 64 Parts 29 | . 14 15 . Haulers Intercepted 1 | . . 1 . Recyclers Shooed . | . . . . Parts Field Recycled . | . . . . Retrieved Matter . | . . . . Parts Self-Destructed . | . . . . Prevented . | . . . . Parts Restored . | . . . . Kills | -11 -10 -9 -9 ------- Run | Yrd Mat Mat Min Combat Hostiles Destroyed 16 | . 7 4 5 Guns 11 | . 5 1 5 AOE 5 | . 2 3 . Classes Destroyed 8 | . 4 3 1 Builder 3 | . . 3 . Hauler 1 | . . 1 . Recycler 2 | . 1 1 . Watcher 2 | . 2 . . Swarmer 6 | . 6 . . Grunt 3 | . 1 2 . Sentry 2 | . . 2 . Assembled 5 | . . . 5 Best Kill Streak 7 | . 6 7 5 Combat Bots Only 5 | . 4 3 5 Max Kills in Single Turn 4 | . 2 4 1 Gunslinging . | . . . . Exploded 2 | . 1 2 . Melee . | . . . . Uniques/NPCs Destroyed . | . . . . Combat | -11 -10 -9 -9 -------- Run | Yrd Mat Mat Min Hostile Shots Fired 127 | . 40 56 31 Missed 31 | . 14 13 4 Hits 96 | . 26 43 27 Melee 14 | . . . 14 Projectile 82 | . 26 43 13 Critical Strikes 2 | . . 1 1 Part Disruptions 1 | . . . 1 Damage Taken 1527 | . 257 716 554 Core 438 | . 21 310 107 Absorbed by Shields . | . . . . Core Remaining (%) 95 | 100 91 . . Volleys Fired 44 | . 18 17 9 Largest 2 | . 2 2 2 Hottest 112 | . 60 112 112 Shots Fired 76 | . 34 25 17 Gun 67 | . 34 16 17 Cannon . | . . . . Launcher 7 | . . 7 . Special 2 | . . 2 . Kinetic 16 | . 16 . . Thermal 37 | . 2 18 17 Explosive 7 | . . 7 . Electromagnetic 16 | . 16 . . Robot Hit Streak 10 | . 2 10 7 Robot Miss Streak 4 | . 4 2 2 Penetration Max . | . . . . Secondary Targets 2 | . 1 . 1 Max Gunslinging Chain 1 | . 1 . 1 Shots Hit Robots 46 | . 13 20 13 Core Hits 35 | . 12 13 10 Critical Kills . | . . . . Critical Parts Destroyed . | . . . . Critical Strikes . | . . . . Melee Attacks . | . . . . Impact . | . . . . Slashing . | . . . . Piercing . | . . . . Sneak Attacks . | . . . . Combat Hostiles . | . . . . Follow-up Attacks . | . . . . Damage Inflicted 1344 | . 447 645 252 Guns 733 | . 260 221 252 Cannons . | . . . . Explosions 611 | . 187 424 . Melee . | . . . . Ramming . | . . . . Kinetic 58 | . 58 . . Thermal 660 | . 187 221 252 Explosive 424 | . . 424 . Electromagnetic 202 | . 202 . . Impact . | . . . . Slashing . | . . . . Piercing . | . . . . Highest Corruption 9 | . . . 9 Average Corruption 3 | . . . 3 Corruption Purged . | . . . . Corruption Blocked . | . . . . Effects 1 | . . . 1 Parts Rejected 1 | . . . 1 Overload Shots . | . . . . Overflow Damage 26 | . . 26 . Projectiles . | . . . . Explosions 26 | . . 26 . Melee . | . . . . Knockbacks . | . . . . Impact . | . . . . Kinetic . | . . . . Secondary . | . . . . Self-Inflicted Damage 131 | . 35 96 . Shots 3 | . 1 2 . Rammed . | . . . . Targets Rammed . | . . . . Kicked . | . . . . Crushed . | . . . . Highest Temperature 391 | . 58 186 391 Average Temperature 81 | . 22 77 186 Received Heat Transfer 361 | . 12 189 160 Effects 1 | . . . 1 Shutdowns 1 | . . . 1 Siege Activations . | . . . . Martial Activations . | . . . . Shielding Activations . | . . . . Robots Disrupted . | . . . . Combat Hostiles . | . . . . Robots Corrupted . | . . . . Combat Hostiles . | . . . . Parts Fried 1 | . 1 . . Impact Corruptions . | . . . . Robots Melted . | . . . . Combat Hostiles . | . . . . Parts Melted . | . . . . Heat Transferred 1286 | . 250 481 555 Parts Sabotaged . | . . . . Parts Stolen . | . . . . Parts Stripped . | . . . . Power Chain Reactions 2 | . 2 . . Alert | -11 -10 -9 -9 ------- Run | Yrd Mat Mat Min Maximum Alert Level . | . . . . Low Security (%) 100 | 100 100 100 100 Level 1 . | . . . . Level 2 . | . . . . Level 3 . | . . . . Level 4 . | . . . . Level 5 . | . . . . High Security . | . . . . Max Security . | . . . . Peak Influence 125 | . 124 125 15 Initial 37 | . . 37 15 Average 35 | . 39 45 4 Influence Increases 441 | . 231 210 . Destroy 0b10 Robot/C 220 | . 140 80 . Destroy 0b10 Robot/NC 40 | . 15 25 . Destroy Leader 46 | . 24 22 . Disable Machine 30 | . 15 15 . Destroy Structure 45 | . 7 38 . Lose Combat Pursuer 60 | . 30 30 . Influence Decreases 441 | . 143 257 41 Entered New Map 77 | . . 51 26 Time Decay 354 | . 143 196 15 Lost Part 10 | . . 10 . Squads Dispatched . | . . . . Investigation . | . . . . Extermination . | . . . . Reinforcement . | . . . . Assault . | . . . . Garrison . | . . . . Intercept . | . . . . Searches Triggered . | . . . . Construction Impeded . | . . . . Haulers Reinforced . | . . . . Active Scanning Responses . | . . . . Cargo Convoy Interrupts . | . . . . Stealth | -11 -10 -9 -9 --------- Run | Yrd Mat Mat Min Distress Signals 5 | . 4 1 . Communications Jammed . | . . . . Distress Signals . | . . . . Times Spotted 33 | . 13 9 11 Peak Tracking Total 8 | . 5 5 8 Tactical Retreats 4 | . 2 1 1 Traps | -11 -10 -9 -9 ------- Run | Yrd Mat Mat Min Traps Triggered . | . . . . Indirectly . | . . . . Trap Hack Attempts . | . . . . Triggered . | . . . . Disarmed . | . . . . Reprogrammed . | . . . . Reused . | . . . . Traps Extracted . | . . . . Installed . | . . . . Triggered . | . . . . Machines | -11 -10 -9 -9 ---------- Run | Yrd Mat Mat Min Machines Disabled 2 | . 1 1 . Max in Single Turn 1 | . 1 1 . Machines Repaired . | . . . . Machines Dismantled . | . . . . Machines Sabotaged . | . . . . Overloaded Fab Kills . | . . . . Hacking | -11 -10 -9 -9 --------- Run | Yrd Mat Mat Min Machines Accessed . | . . . . Terminals . | . . . . Fabricators . | . . . . Repair Stations . | . . . . Recycling Units . | . . . . Scanalyzers . | . . . . Garrison Access . | . . . . Total Hacks . | . . . . Successful . | . . . . Failed . | . . . . Catastrophic . | . . . . Database Lockouts . | . . . . Manual . | . . . . Terminals . | . . . . Fabricators . | . . . . Repair Stations . | . . . . Recycling Units . | . . . . Scanalyzers . | . . . . Garrison Access . | . . . . Terminal Hacks . | . . . . Fabricator Hacks . | . . . . Repair Station Hacks . | . . . . Recycling Unit Hacks . | . . . . Scanalyzer . | . . . . Garrison Access Hacks . | . . . . Unauthorized Hacks . | . . . . Terminals . | . . . . Fabricators . | . . . . Repair Stations . | . . . . Recycling Units . | . . . . Scanalyzers . | . . . . Garrison Access . | . . . . Data Cores Recovered . | . . . . Used . | . . . . Hacking Detections . | . . . . Full Trace Events . | . . . . Feedback Events . | . . . . Feedback Blocked . | . . . . Robot Schematics Acquired . | . . . . Robots Built . | . . . . Authchips . | . . . . Time . | . . . . Total Robot Build Rating . | . . . . Part Schematics Acquired . | . . . . Parts Built . | . . . . Authchips . | . . . . Time . | . . . . Total Part Build Rating . | . . . . Part Studies Acquired . | . . . . Parts Repaired . | . . . . Time . | . . . . Parts Recycled . | . . . . Recycled Matter . | . . . . Retrieved Matter . | . . . . Retrieved Components . | . . . . Parts Scanalyzed . | . . . . Part Schematics Acquired . | . . . . Parts Damaged . | . . . . Bothacking | -11 -10 -9 -9 ------------ Run | Yrd Mat Mat Min Used RIF Installer . | . . . . Robots Hacked . | . . . . Non-combat . | . . . . Combat . | . . . . Robot Hacks Applied . | . . . . Relay Couplers Released . | . . . . Fabnet Peak Effective % . | . . . . Robots Rewired . | . . . . Allies Hacked . | . . . . Hacks Repelled . | . . . . Allies | -11 -10 -9 -9 -------- Run | Yrd Mat Mat Min Total Allies . | . . . . Largest Group . | . . . . Highest-Rated Group . | . . . . Highest-Rated Ally . | . . . . Total Orders . | . . . . Ally Attacks . | . . . . Total Damage . | . . . . Kills . | . . . . Allies Corrupted . | . . . . Allies Melted . | . . . . Intel | -11 -10 -9 -9 ------- Run | Yrd Mat Mat Min Active Infowar (turns) . | . . . . Robot Analysis Total . | . . . . Derelict Logs Recovered . | . . . . Drone Launches . | . . . . Drone Recoveries . | . . . . Exploration | -11 -10 -9 -9 ------------- Run | Yrd Mat Mat Min Turns Passed 1116 | 109 437 486 84 Spaces Moved 487 | 53 217 182 35 Core 45 | 23 . 22 . Treads 376 | 30 217 94 35 Legs . | . . . . Wheels . | . . . . Hover . | . . . . Flight 66 | . . 66 . Fastest Speed 50 | 50 160 117 160 Average Speed 165 | 112 160 187 160 Slowest Speed 520 | 160 160 520 160 Overloaded Moves . | . . . . Propulsion Burnouts . | . . . . Robots Hopped . | . . . . Potential Cave-ins . | . . . . Cave-ins Triggered . | . . . . Exploration Rate (%) 20 | 5 37 19 21 Regions Visited 3 Branch Regions 1 Pre-discovered Areas . | . . . . Known Exits Taken . | . . . . Unknown Exits Taken 3 | 1 1 1 . Scrap Searched 1 | . . . 1 Spaces Dug . | . . . . Terrain Destroyed 46 | . 6 40 . Melee . | . . . . Projectile . | . . . . AOE 46 | . 6 40 . Terrain Rammed . | . . . . Walls Destroyed . | . . . . Machines Disabled . | . . . . Actions | -11 -10 -9 -9 --------- Run | Yrd Mat Mat Min Total 729 | 102 277 304 46 Wait 145 | 38 33 74 . Move 484 | 52 216 181 35 Hop . | . . . . Pick Up 23 | 6 4 13 . Fast Attach 2 | 2 . . . Attach 17 | 4 1 11 1 Detach 1 | . . 1 . Swap 4 | . 2 1 1 Drop 9 | . 3 6 . Fire 44 | . 18 17 9 Melee . | . . . . Ram . | . . . . Kick . | . . . . Crush . | . . . . Escape Stasis . | . . . . Rewire . | . . . . Trap . | . . . . Miscellaneous . | . . . . Route ------- -11/Scrapyard -10/Materials -9/Materials -9/Mines History --------- Turn | Location | Event 7 | -11/Scrapyard | Discovered new exit (range 15) 110 | -11/Scrapyard | Entered Materials 301 | -10/Materials | Build established: Mutant 521 | -10/Materials | Discovered new exit (range 16) 547 | -10/Materials | Entered another Materials area 547 | -9/Materials | Evolved 2 slots: Propulsion x2 723 | -9/Materials | Core integrity fell below 50% 753 | -9/Materials | Lost 5 parts (1p2n2w) 1013 | -9/Materials | Discovered new exit (range 13) 1033 | -9/Materials | Entered Mines 1068 | -9/Mines | Assembled infested the area 1073 | -9/Mines | Assisted by a Guerilla fighting off Assembled 1089 | -9/Mines | Met a Derelict bent on vengeance 1100 | -9/Mines | Core integrity fell below 20% 1117 | -9/Mines | Destroyed by as-11472 with Assembled Blade Last Messages --------------- 01098_ VO-T9E(h) destroyed. 01098_ as-12808 destroyed. 01101_ as-36278 destroyed. 01103_ Ion Engine destroyed. 01103_ System corrupted by crushing effect (+1). 01108_ K-01 Serf collects debris. 01110_ Destroyed Asb. F-torch. 01110_ as-84111 destroyed. 01111_ K-01 Serf collects debris. 01112_ Lgt. Treads destroyed. 01112_ System corrupted by crushing effect (+4). 01113_ as-24496 destroyed. 01114_ Lgt. Treads destroyed. 01114_ K-01 Serf collects debris. 01115_ Imp. Medium Laser destroyed. 01115_ System corrupted by crushing effect (+4). 01115_ Knocked back. 01116_ Power failure, Lgt. Ion Engine shutdown. 01117_ System corrupted: Lgt. Ion Engine rejected. Map ----- +----------------------------------------------------+ | ?????????????????????????????????????????????????? | | ?????????????????????????????????????????????????? | | ?????????????????????????????????????????????????? | | ?????????????????????????????????????????????????? | | ?????????????????????????????????????????????????? | | ?????????????????????????????????????????????????? | | ?????????????????????????????????????????????????? | | ?????????????????????????????????????????????????? | | ?????????????????????????????????????????????????? | | ?????????????????????????????????????????????????? | | ?????????????????????????????????????????????????? | | ?????????????????????????????????????????????????? | | ?????????????????????????????????????????????????? | | ?????????????????????????????????????????????????? | | ?????????????????????????????????????????????????? | | ?????????????????????????????????????????????????? | | ?????????????????????????????????????????????????? | | ?????????????????????????????????????????????????? | | ?????????????????????????????????????????????????? | | ?????????????????????????????????????????????????? | | ?????????????????????#???????????????????????????? | | ?????????????????????# ??????????????????????????? | | ?????????????????????# ?????????????????????????? | | ?????????????????????# #????????????????????????? | | ?????????????????????# ###??????????????????????? | | ???????????????### #"# %#@###????????????????????? | | ???????????????# % a ##???????????????????? | | ?????????????????#####a aaa% ##?????###??????????? | | ?????????????????????# ] ###### ##?????????? | | ?????????????????????## % ## #??????#### | | ??????????????????????### = ###??? ? | | ????????????????????????## k ? | | ?????????????????????????## ## ## #??? | | ??????????????????????????####### #????#### #???? | | ????????????????????????????????# #####??# ###?# | | ???????????????????????????????## ### # | | ??????????????????????????????## | | ??????????????????????????????# | | ??????????????????????????????# | | ??????????????????????????????# # ### # | | ??????????????????????????????# ## # ##???? | | ??????????????????????????????# ?# ## ## ##????? | | ??????????????????????????????# ?# ## #? ####??? | | ??????????????????????????????# ?# ## #?? #??# | | ??????????????????????????????# ?# ## #???# #?## | | ?????????????????????????????? ?# ##*##### ### | | ?????????????????????????????? #?# ##[%! | | ?????????????????????????????? ??# ########## # | | ?????????????????????????????? ??# #????????# ## | | ??????????????????????????????????# ?????????# ## | +----------------------------------------------------+ Best States ------------- Heat Dissipation 28 Energy Generation 10 Energy Capacity 250 Matter Stores 300 Matter Capacity 300 Sight Range 16 Terrain Scan Density 10 Evasion (%) 50 Recoil Reduction 2 Item Schematics ----------------- None Robot Schematics ------------------ None Fabricated ------------ Nothing Repaired ---------- Nothing Studied --------- None Alien Tech Used ----------------- None Achievements -------------- None Challenges ------------ None Game ------ Seed ThrowingFieldthrustBox Manual? 0 Play Time 00:09:58 Cumulative 27.5 hours Start 2025.11.16 @ 12:25:55 End 2025.11.16 @ 12:34:56 Sessions 1 Manual Loads 0 Difficulty Rogue Special Mode None Game No. 84 Rogue 84 Adventurer 0 Explorer 0 Win Type - Total 0 Types 0/0/0/0/0/0/0/0/0/0 Lore% 7 Gallery% 23 Achievement% 17 Wizard Run 0 Options --------- Layout 1 ASCII 0 Keyboard 0 Movement Mouse Keybinds 0 Fullscreen 1 Font 24/Terminus Map View 25x17 Zoom Use 95% Tactical HUD 1 Map Filters NONE Filters NONE Steam 1 RUN: f9693495-b03f-4e95-adb1-da598ec7a3f2